fUST/lending_fUST_20250608
["ID","MTS","AMOUNT","RATE_DAILY","PERIOD"]
[364967556,1749364153047,-500.0,0.00016756,2]
[364967557,1749364153070,-500.0,0.00016756,2]
[364967558,1749364153092,-500.0,0.00016756,2]
[364967559,1749364153117,-500.0,0.00016756,2]
[364967560,1749364153141,-500.0,0.00016756,2]
[364967561,1749364153163,-500.0,0.00016756,2]
[364967562,1749364153186,-500.0,0.00016756,2]
[364967563,1749364153208,-500.0,0.00016756,2]
[364967564,1749364153232,-500.0,0.00016756,2]
[364967565,1749364153255,-168.88528749,0.00016756,2]
[364967566,1749364153279,-500.0,0.00016756,2]
[364967567,1749364153301,-500.0,0.00016756,2]
[364967568,1749364153324,-500.0,0.00016756,2]
[364967569,1749364153347,-500.0,0.00016756,2]
[364967570,1749364153369,-500.0,0.00016756,2]
[364967571,1749364153539,-500.0,0.00016756,2]
[364967572,1749364153565,-500.0,0.00016756,2]
[364967573,1749364153588,-500.0,0.00016756,2]
[364967574,1749364153611,-500.0,0.00016756,2]
[364967575,1749364153634,-300.0,0.00016757,2]
[364967576,1749364153655,-300.0,0.00016757,2]
[364967577,1749364153676,-300.0,0.00016757,2]
[364967578,1749364153699,-2325.53006978,0.00016757,2]
[364967579,1749364153720,-24900.0,0.00016762,2]
[364967580,1749364153742,-228.80402073,0.00017231,2]
[364967581,1749364153765,-201.04381416,0.00017637,2]
[364967582,1749364153786,-783.64012607,0.00017637,2]
[364967583,1749364153809,-155.3508207,0.00017763,2]
[364967584,1749364153834,-500.0,0.00017763,2]
[364967585,1749364153858,-500.0,0.00017763,2]
[364967586,1749364153882,-500.0,0.00017763,2]
[364967587,1749364153906,-400.0,0.00017763,2]
[364967588,1749364153931,-500.0,0.00017763,2]
[364967589,1749364153959,-500.0,0.00017763,2]
[364967590,1749364153985,-500.0,0.00017763,2]
[364967591,1749364154013,-500.0,0.00017763,2]
[364967592,1749364154040,-500.0,0.00017763,2]
[364967593,1749364154063,-500.0,0.00017763,2]
[364967594,1749364154088,-374.72535244,0.00017763,2]
[364967595,1749364154112,-500.0,0.00017763,2]
[364967596,1749364154136,-500.0,0.00017763,2]
[364967597,1749364154160,-500.0,0.00017763,2]
[364967598,1749364154184,-500.0,0.00017763,2]
[364967599,1749364154208,-500.0,0.00017763,2]
[364967600,1749364154231,-500.0,0.00017763,2]
[364967601,1749364154257,-500.0,0.00017763,2]
[364967602,1749364154280,-200.0,0.00017763,2]
[364967603,1749364154301,-1365.29711925,0.00017764,2]
[364967604,1749364157587,324.25768343,0.00016229,2]
[364967605,1749364157655,5000.0,0.00017586,2]
[364967609,1749364173505,5000.0,0.00017586,2]
[364967610,1749364188941,5000.0,0.00017551,2]
[364967612,1749364205174,5000.0,0.00017551,2]
[364967613,1749364220374,2257.91239822,0.00017551,2]
[364967641,1749364237997,-1758.29695784,0.00017551,2]
[364967643,1749364238056,-983.79064394,0.00017551,2]
[364967645,1749364238068,-131.72705781,0.00017729,2]
[364967662,1749364238181,-1128.72363069,0.00017729,2]
[364967667,1749364238192,-248.73577676,0.00017763,2]
[364967670,1749364238205,-189.69346019,0.00017763,2]
[364967673,1749364238216,-500.0,0.00017763,2]
[364967676,1749364238228,-430.81546586,0.00017763,2]
[364967679,1749364238240,-296.54280972,0.00017763,2]
[364967681,1749364238251,-184.93748207,0.00017763,2]
[364967683,1749364238262,-500.0,0.00017763,2]
[364967686,1749364238276,-300.0,0.00017763,2]
[364967688,1749364238292,-300.0,0.00017763,2]
[364967690,1749364238303,-300.0,0.00017763,2]
[364967694,1749364238316,-300.0,0.00017763,2]
[364967697,1749364238328,-330.0,0.00017763,2]
[364967701,1749364238341,-38903.61626055,0.00017764,2]
[364967703,1749364238353,-4284.4974171,0.00017791,2]
[364967705,1749364238364,-181.46331373,0.00017871,2]
[364967707,1749364238377,-420.0,0.00018306,2]
[364967710,1749364238389,-1988.95073045,0.000189,2]
[364967712,1749364238401,-581.2758164,0.00018959,2]
[364967714,1749364238413,-500.0,0.00019095,2]
[364967716,1749364238424,-770.28,0.00019168,3]
[364967719,1749364238436,-500.0,0.00019173,2]
[364967721,1749364238447,-502.79094819,0.00019173,2]
[364967723,1749364238460,-504.32517686,0.00019173,2]
[364967725,1749364238472,-471.47148591,0.00019173,2]
[364967728,1749364238484,-500.0,0.00019176,2]
[364967730,1749364238495,-500.0,0.00019176,2]
[364967732,1749364238507,-500.0,0.00019176,2]
[364967735,1749364238518,-500.0,0.00019176,2]
[364967737,1749364238530,-500.0,0.00019176,2]
[364967739,1749364238542,-500.0,0.00019176,2]
[364967741,1749364238553,-160.0,0.00019177,2]
[364967744,1749364238565,-129843.58338,0.00019177,2]
[364967746,1749364238576,-440.0,0.00019178,2]
[364967748,1749364238587,-440.0,0.00019178,2]
[364967750,1749364238600,-243.27392431,0.00019178,2]
[364967753,1749364238611,-261.62673082,0.00019178,2]
[364967755,1749364238625,-341.51226882,0.00019178,2]
[364967757,1749364238636,-191.3642015,0.00019178,2]
[364967760,1749364238648,-440.0,0.00019178,2]
[364967762,1749364238660,-440.0,0.00019178,2]
[364967764,1749364238671,-432.53888901,0.00019178,2]
[364967766,1749364238683,-172.82083208,0.00019178,2]
[364967769,1749364238694,-440.0,0.00019178,2]
[364967771,1749364238705,-431.52540205,0.00019178,2]
[364967773,1749364238716,-301.95008133,0.00019178,2]
[364967775,1749364238729,-440.0,0.00019178,2]
[364967778,1749364238740,-440.0,0.00019178,2]
[364967780,1749364238751,-224.75107337,0.00019178,2]
[364967782,1749364238763,-440.0,0.00019178,2]
[364967784,1749364238774,-346.98363686,0.00019178,2]
[364967787,1749364238785,-440.0,0.00019178,2]
[364967789,1749364238797,-1374.99,0.00019178,2]
[364967791,1749364238809,-410.0,0.00019178,2]
[364967794,1749364238821,-440.0,0.00019178,2]
[364967797,1749364238832,-440.0,0.00019178,2]
[364967801,1749364238844,-440.0,0.00019178,2]
[364967803,1749364238854,-2951.42,0.00019178,2]
[364967807,1749364238864,-2951.42,0.00019178,2]
[364967829,1749364239051,-2951.42,0.00019178,2]
[364967830,1749364239064,-2951.42,0.00019178,2]
[364967831,1749364239074,-2951.42,0.00019178,2]
[364967833,1749364239084,-2951.42,0.00019178,2]
[364967835,1749364239094,-2951.42,0.00019178,2]
[364967837,1749364239105,-2951.42,0.00019178,2]
[364967839,1749364239115,-2951.42,0.00019178,2]
[364967841,1749364239125,-440.0,0.00019178,2]
[364967843,1749364239135,-440.0,0.00019178,2]
[364967846,1749364239145,-440.0,0.00019178,2]
[364967848,1749364239155,-440.0,0.00019178,2]
[364967850,1749364239170,-440.0,0.00019178,2]
[364967852,1749364239179,-440.0,0.00019178,2]
[364967854,1749364239189,-440.0,0.00019178,2]
[364967856,1749364239199,-394.77677725,0.00019178,2]
[364967859,1749364239209,-440.0,0.00019178,2]
[364967861,1749364239219,-223.29750905,0.00019178,2]
[364967863,1749364239229,-430.77599743,0.00019178,2]
[364967865,1749364239238,-440.0,0.00019178,2]
[364967867,1749364239247,-440.0,0.00019178,2]
[364967869,1749364239256,-440.0,0.00019178,2]
[364967871,1749364239266,-430.65786471,0.00019178,2]
[364967873,1749364239275,-366.32306027,0.00019178,2]
[364967875,1749364239285,-440.0,0.00019178,2]
[364967877,1749364239294,-440.0,0.00019178,2]
[364967879,1749364239307,-420.0,0.00019178,2]
[364967881,1749364239317,-440.0,0.00019178,2]
[364967883,1749364239326,-440.0,0.00019178,2]
[364967885,1749364239336,-440.0,0.00019178,2]
[364967887,1749364239346,-430.0,0.00019178,2]
[364967889,1749364239355,-420.0,0.00019178,2]
[364967891,1749364239364,-440.0,0.00019178,2]
[364967893,1749364239374,-440.0,0.00019178,2]
[364967895,1749364239383,-440.0,0.00019178,2]
[364967897,1749364239393,-420.0,0.00019178,2]
[364967899,1749364239403,-420.0,0.00019178,2]
[364967901,1749364239413,-440.0,0.00019178,2]
[364967903,1749364239423,-420.0,0.00019178,2]
[364967905,1749364239433,-440.0,0.00019178,2]
[364967907,1749364239442,-440.0,0.00019178,2]
[364967909,1749364239452,-440.0,0.00019178,2]
[364967911,1749364239461,-440.0,0.00019178,2]
[364967913,1749364239471,-440.0,0.00019178,2]
[364967915,1749364239482,-430.0,0.00019178,2]
[364967917,1749364239492,-222.28,0.00019178,2]
[364967919,1749364239502,-440.0,0.00019178,2]
[364967921,1749364239511,-440.0,0.00019178,2]
[364967922,1749364239521,-500.0,0.00019178,2]
[364967923,1749364239531,-733.9,0.00019178,2]
[364967924,1749364239540,-440.0,0.00019178,2]
[364967926,1749364239550,-430.0,0.00019178,2]
[364967928,1749364239559,-545.62,0.00019178,2]
[364967930,1749364239568,-440.0,0.00019178,2]
[364967932,1749364239577,-440.0,0.00019178,2]
[364967934,1749364239587,-156.03,0.00019178,2]
[364967936,1749364239597,-440.0,0.00019178,2]
[364967938,1749364239606,-440.0,0.00019178,2]
[364967940,1749364239616,-440.0,0.00019178,2]
[364967943,1749364239627,-440.0,0.00019178,2]
[364967945,1749364239637,-440.0,0.00019178,2]
[364967947,1749364239647,-440.0,0.00019178,2]
[364967949,1749364239656,-440.0,0.00019178,2]
[364967951,1749364239665,-440.0,0.00019178,2]
[364967953,1749364239675,-440.0,0.00019178,2]
[364967955,1749364239685,-430.0,0.00019178,2]
[364967956,1749364239694,-494.69,0.00019178,2]
[364967958,1749364239704,-440.0,0.00019178,2]
[364967960,1749364239713,-440.0,0.00019178,2]
[364967962,1749364239723,-380.0,0.00019178,2]
[364967964,1749364239732,-440.0,0.00019178,2]
[364967966,1749364239742,-430.0,0.00019178,2]
[364967968,1749364239752,-440.0,0.00019178,2]
[364967970,1749364239761,-440.0,0.00019178,2]
[364967972,1749364239770,-440.0,0.00019178,2]
[364967974,1749364239780,-440.0,0.00019178,2]
[364967976,1749364239789,-440.0,0.00019178,2]
[364967978,1749364239799,-440.0,0.00019178,2]
[364967980,1749364239809,-440.0,0.00019178,2]
[364967982,1749364239818,-440.0,0.00019178,2]
[364967984,1749364239828,-1024.89975299,0.00019178,2]
[364967986,1749364239837,-430.0,0.00019178,2]
[364967988,1749364239846,-201.42,0.00019178,2]
[364967990,1749364239855,-440.0,0.00019178,2]
[364967992,1749364239865,-440.0,0.00019178,2]
[364967994,1749364239874,-503.73,0.00019178,2]
[364967996,1749364239884,-326.19704284,0.00019178,2]
[364967998,1749364239893,-438.86774292,0.00019178,2]
[364968000,1749364239903,-430.0,0.00019178,2]
[364968002,1749364239912,-473.55786663,0.00019178,2]
[364968004,1749364239922,-440.0,0.00019178,2]
[364968006,1749364239932,-380.22831224,0.00019178,2]
[364968008,1749364239942,-1132.01,0.00019178,2]
[364968010,1749364239951,-171.7,0.00019178,2]
[364968012,1749364239961,-650.38,0.00019178,2]
[364968014,1749364239971,-440.0,0.00019178,2]
[364968016,1749364239981,-440.0,0.00019178,2]
[364968018,1749364239993,-543.85,0.00019178,2]
[364968021,1749364240002,-440.0,0.00019178,2]
[364968023,1749364240012,-489.8992525,0.00019178,2]
[364968025,1749364240025,-440.0,0.00019178,2]
[364968027,1749364240035,-440.0,0.00019178,2]
[364968029,1749364240045,-440.0,0.00019178,2]
[364968031,1749364240056,-686.58,0.00019178,2]
[364968033,1749364240065,-1234.13,0.00019178,2]
[364968035,1749364240076,-440.0,0.00019178,2]
[364968037,1749364240085,-498.75,0.00019178,2]
[364968039,1749364240095,-552.16560943,0.00019178,2]
[364968041,1749364240107,-430.0,0.00019178,2]
[364968043,1749364240117,-720.78,0.00019178,2]
[364968045,1749364240126,-192.6235388,0.00019178,2]
[364968047,1749364240136,-440.0,0.00019178,2]
[364968049,1749364240145,-440.0,0.00019178,2]
[364968051,1749364240155,-440.0,0.00019178,2]
[364968053,1749364240164,-912.16,0.00019178,2]
[364968055,1749364240174,-440.0,0.00019178,2]
[364968057,1749364240183,-490.49,0.00019178,2]
[364968059,1749364240193,-440.0,0.00019178,2]
[364968061,1749364240204,-440.0,0.00019178,2]
[364968063,1749364240214,-551.91646431,0.00019178,2]
[364968064,1749364240224,-310.0,0.00019178,2]
[364968065,1749364240234,-440.0,0.00019178,2]
[364968067,1749364240245,-440.0,0.00019178,2]
[364968068,1749364240255,-440.0,0.00019178,2]
[364968069,1749364240265,-440.0,0.00019178,2]
[364968070,1749364240275,-440.0,0.00019178,2]
[364968071,1749364240284,-178.043326,0.00019178,2]
[364968072,1749364240295,-500.0,0.00019345,2]
[364968073,1749364240304,-420.0,0.00019386,2]
[364968074,1749364240314,-2951.42,0.00019419,2]
[364968075,1749364240324,-207.4,0.00019419,2]
[364968077,1749364240333,-1242.69953713,0.00019419,2]
[364968079,1749364240344,-500.0,0.00019419,2]
[364968081,1749364240354,-500.0,0.00019419,2]
[364968082,1749364240365,-500.0,0.00019419,2]
[364968083,1749364240374,-500.0,0.00019419,2]
[364968084,1749364240384,-5000.0,0.00019419,2]
[364968085,1749364240394,-500.0,0.00019419,2]
[364968086,1749364240404,-4657.09349407,0.00019419,2]
[364968087,1749364240414,-500.0,0.00019419,2]
[364968088,1749364240423,-500.0,0.00019419,2]
[364968089,1749364240434,-500.0,0.00019419,2]
[364968090,1749364240444,-500.0,0.00019419,2]
[364968091,1749364240454,-500.0,0.00019419,2]
[364968092,1749364240464,-500.0,0.00019419,2]
[364968093,1749364240473,-500.0,0.00019419,2]
[364968094,1749364240484,-500.0,0.00019419,2]
[364968095,1749364240494,-500.0,0.00019419,2]
[364968096,1749364240504,-500.0,0.00019419,2]
[364968097,1749364240513,-500.0,0.00019419,2]
[364968098,1749364240523,-500.0,0.00019419,2]
[364968099,1749364240533,-500.0,0.00019419,2]
[364968100,1749364240543,-500.0,0.00019419,2]
[364968101,1749364240552,-500.0,0.00019419,2]
[364968102,1749364240562,-500.0,0.00019419,2]
[364968104,1749364240571,-500.0,0.00019419,2]
[364968105,1749364240581,-500.0,0.00019419,2]
[364968106,1749364240591,-500.0,0.00019419,2]
[364968107,1749364240601,-500.0,0.00019419,2]
[364968108,1749364240612,-500.0,0.00019419,2]
[364968109,1749364240623,-500.0,0.00019419,2]
[364968110,1749364240633,-500.0,0.00019419,2]
[364968111,1749364240643,-500.0,0.00019419,2]
[364968112,1749364240653,-533.39939742,0.00019419,2]
[364968113,1749364240662,-2951.42,0.00019451,2]
[364968114,1749364240672,-2951.42,0.00019451,2]
[364968116,1749364240682,-151.0,0.00019451,2]
[364968117,1749364240691,-151.0,0.00019451,2]
[364968120,1749364240702,-199.76110086,0.00019452,2]
[364968121,1749364240712,-440.0,0.00019452,2]
[364968124,1749364240722,-440.0,0.00019452,2]
[364968126,1749364240733,-439.62792418,0.00019452,2]
[364968128,1749364240743,-1374.99,0.00019452,2]
[364968130,1749364240753,-440.0,0.00019452,2]
[364968132,1749364240763,-440.0,0.00019452,2]
[364968134,1749364240772,-430.0,0.00019452,2]
[364968136,1749364240782,-440.0,0.00019452,2]
[364968138,1749364240792,-258.19901486,0.00019452,2]
[364968140,1749364240802,-270.55603492,0.00019452,2]
[364968142,1749364240811,-440.0,0.00019452,2]
[364968144,1749364240821,-430.0,0.00019452,2]
[364968146,1749364240831,-440.0,0.00019452,2]
[364968148,1749364240840,-400.0,0.00019452,2]
[364968150,1749364240850,-440.0,0.00019452,2]
[364968152,1749364240859,-440.0,0.00019452,2]
[364968154,1749364240869,-440.0,0.00019452,2]
[364968156,1749364240879,-240.51085167,0.00019452,2]
[364968158,1749364240890,-440.0,0.00019452,2]
[364968160,1749364240900,-440.0,0.00019452,2]
[364968162,1749364240909,-490.35979412,0.00019452,2]
[364968164,1749364240919,-500.0,0.00019452,2]
[364968166,1749364240929,-733.9,0.00019452,2]
[364968169,1749364240939,-440.0,0.00019452,2]
[364968171,1749364240948,-440.0,0.00019452,2]
[364968172,1749364240958,-440.0,0.00019452,2]
[364968175,1749364240968,-395.60359179,0.00019452,2]
[364968177,1749364240977,-440.0,0.00019452,2]
[364968179,1749364240988,-440.0,0.00019452,2]
[364968181,1749364240998,-310.0,0.00019452,2]
[364968183,1749364241007,-440.0,0.00019452,2]
[364968185,1749364241019,-494.69,0.00019452,2]
[364968187,1749364241034,-440.0,0.00019452,2]
[364968189,1749364241049,-420.0,0.00019452,2]
[364968191,1749364241059,-440.0,0.00019452,2]
[364968193,1749364241069,-441.58509408,0.00019452,2]
[364968195,1749364241078,-440.0,0.00019452,2]
[364968197,1749364241088,-440.0,0.00019452,2]
[364968199,1749364241098,-440.0,0.00019452,2]
[364968201,1749364241107,-586.42314775,0.00019452,2]
[364968203,1749364241118,-164.23396047,0.00019452,2]
[364968204,1749364241127,-440.0,0.00019452,2]
[364968206,1749364241137,-397.41348155,0.00019452,2]
[364968208,1749364241146,-503.73,0.00019452,2]
[364968211,1749364241157,-440.0,0.00019452,2]
[364968212,1749364241166,-1132.01,0.00019452,2]
[364968214,1749364241176,-650.38,0.00019452,2]
[364968216,1749364241185,-440.0,0.00019452,2]
[364968218,1749364241195,-440.0,0.00019452,2]
[364968219,1749364241205,-543.85,0.00019452,2]
[364968221,1749364241214,-440.0,0.00019452,2]
[364968222,1749364241224,-440.0,0.00019452,2]
[364968224,1749364241234,-440.0,0.00019452,2]
[364968226,1749364241243,-440.0,0.00019452,2]
[364968227,1749364241253,-686.58,0.00019452,2]
[364968228,1749364241263,-1234.13,0.00019452,2]
[364968229,1749364241273,-440.0,0.00019452,2]
[364968230,1749364241282,-720.78,0.00019452,2]
[364968231,1749364241292,-440.0,0.00019452,2]
[364968232,1749364241302,-440.0,0.00019452,2]
[364968233,1749364241312,-440.0,0.00019452,2]
[364968234,1749364241322,-912.16,0.00019452,2]
[364968235,1749364241332,-440.0,0.00019452,2]
[364968236,1749364241342,-490.49,0.00019452,2]
[364968237,1749364241352,-440.0,0.00019452,2]
[364968238,1749364241362,-440.0,0.00019452,2]
[364968239,1749364241373,-560.0,0.00019452,2]
[364968240,1749364241382,-440.0,0.00019452,2]
[364968241,1749364241392,-426.18303345,0.00019452,2]
[364968242,1749364241401,-440.0,0.00019452,2]
[364968243,1749364241411,-307.6308769,0.00019479,2]
[364968244,1749364241420,-307.512874,0.00019479,2]
[364968245,1749364241429,-509.9919007,0.00019479,2]
[364968246,1749364241439,-181.46331371,0.00019636,2]
[364968247,1749364241448,-104.59426992,0.00019699,2]
[364968248,1749364241538,-395.40573008,0.00019699,2]
[364968249,1749364241548,-151.0,0.00019699,2]
[364968250,1749364241557,-154.589193,0.00019699,2]
[364968251,1749364241567,-2951.42,0.00019725,2]
[364968252,1749364241578,-440.0,0.00019726,2]
[364968253,1749364241588,-1374.99,0.00019726,2]
[364968254,1749364241598,-440.0,0.00019726,2]
[364968255,1749364241607,-218.43,0.00019726,2]
[364968256,1749364241617,-440.0,0.00019726,2]
[364968257,1749364241627,-440.0,0.00019726,2]
[364968258,1749364241637,-440.0,0.00019726,2]
[364968259,1749364241647,-440.0,0.00019726,2]
[364968260,1749364241657,-325.88102752,0.00019726,2]
[364968261,1749364241667,-160.71,0.00019726,2]
[364968262,1749364241676,-440.0,0.00019726,2]
[364968263,1749364241686,-160.994012,0.00019726,2]
[364968264,1749364241696,-733.9,0.00019726,2]
[364968265,1749364241705,-440.0,0.00019726,2]
[364968266,1749364241715,-440.0,0.00019726,2]
[364968267,1749364241725,-440.0,0.00019726,2]
[364968268,1749364241736,-440.0,0.00019726,2]
[364968269,1749364241746,-440.0,0.00019726,2]
[364968270,1749364241755,-440.0,0.00019726,2]
[364968271,1749364241765,-494.69,0.00019726,2]
[364968272,1749364241774,-440.0,0.00019726,2]
[364968273,1749364241784,-151.0,0.00019726,2]
[364968274,1749364241794,-440.0,0.00019726,2]
[364968275,1749364241804,-440.0,0.00019726,2]
[364968276,1749364241813,-440.0,0.00019726,2]
[364968277,1749364241822,-410.0,0.00019726,2]
[364968278,1749364241833,-436.7367056,0.00019726,2]
[364968279,1749364241843,-503.73,0.00019726,2]
[364968280,1749364241852,-440.0,0.00019726,2]
[364968281,1749364241862,-1132.01,0.00019726,2]
[364968282,1749364241872,-650.38,0.00019726,2]
[364968283,1749364241882,-440.0,0.00019726,2]
[364968284,1749364241896,-199.58347643,0.00019726,2]
[364968285,1749364241920,-176.00569016,0.00019726,2]
[364968286,1749364241930,-248.43729715,0.00019726,2]
[364968287,1749364241941,-295.41270285,0.00019726,2]
[364968288,1749364241951,-440.0,0.00019726,2]
[364968289,1749364241961,-318.38,0.00019726,2]
[364968290,1749364241970,-440.0,0.00019726,2]
[364968291,1749364241980,-440.0,0.00019726,2]
[364968292,1749364241989,-686.58,0.00019726,2]
[364968293,1749364241999,-1234.13,0.00019726,2]
[364968294,1749364242008,-440.0,0.00019726,2]
[364968295,1749364242019,-720.78,0.00019726,2]
[364968296,1749364242030,-440.0,0.00019726,2]
[364968297,1749364242157,-440.0,0.00019726,2]
[364968298,1749364242168,-440.0,0.00019726,2]
[364968299,1749364242178,-912.16,0.00019726,2]
[364968300,1749364242188,-440.0,0.00019726,2]
[364968301,1749364242197,-490.49,0.00019726,2]
[364968302,1749364242207,-440.0,0.00019726,2]
[364968303,1749364242216,-440.0,0.00019726,2]
[364968304,1749364242225,-440.0,0.00019726,2]
[364968305,1749364242235,-440.0,0.00019726,2]
[364968306,1749364242244,-500.0,0.00019726,2]
[364968307,1749364242254,-151.0,0.00019726,2]
[364968308,1749364242264,-500.0,0.00019754,2]
[364968309,1749364242274,-151.0,0.00019754,2]
[364968310,1749364242284,-500.0,0.00019781,2]
[364968311,1749364242294,-151.0,0.00019781,2]
[364968312,1749364242304,-189.0721684,0.000198,2]
[364968313,1749364242314,-500.0,0.00019809,2]
[364968314,1749364242324,-151.0,0.00019809,2]
[364968315,1749364242334,-229.60437222,0.00019814,2]
[364968316,1749364242345,-160.0,0.00019814,2]
[364968317,1749364242355,-423.98131849,0.00019814,2]
[364968318,1749364242365,-160.0,0.00019814,2]
[364968319,1749364242374,-160.0,0.00019814,2]
[364968320,1749364242385,-842.5625,0.00019814,2]
[364968321,1749364242395,-213.05153702,0.00019814,2]
[364968322,1749364242404,-500.0,0.00019836,2]
[364968323,1749364242414,-245.0,0.00019836,2]
[364968324,1749364242423,-500.0,0.00019863,2]
[364968325,1749364242434,-500.0,0.00019891,2]
[364968326,1749364242444,-410.2401633,0.000199,2]
[364968327,1749364242454,-500.0,0.00019918,2]
[364968328,1749364242464,-500.0,0.00019946,2]
[364968329,1749364242475,-2951.42,0.00019963,2]
[364968330,1749364242486,-2722.4,0.00019964,2]
[364968331,1749364242496,-2722.4,0.00019964,2]
[364968332,1749364242505,-500.0,0.00019973,2]
[364968333,1749364242515,-2951.42,0.00019999,2]
[364968334,1749364242525,-537.0,0.00019999,2]
[364968335,1749364242535,-189.47995318,0.0002,5]
[364968336,1749364242546,-440.0,0.0002,2]
[364968337,1749364242555,-1374.99,0.0002,2]
[364968338,1749364242565,-440.0,0.0002,2]
[364968339,1749364242574,-280.0,0.0002,2]
[364968340,1749364242584,-440.0,0.0002,2]
[364968341,1749364242593,-440.0,0.0002,2]
[364968342,1749364242602,-440.0,0.0002,2]
[364968343,1749364242612,-300.0,0.0002,2]
[364968344,1749364242621,-440.0,0.0002,2]
[364968345,1749364242631,-733.9,0.0002,2]
[364968346,1749364242640,-410.0,0.0002,2]
[364968347,1749364242650,-440.0,0.0002,2]
[364968348,1749364242659,-410.0,0.0002,2]
[364968349,1749364242670,-440.0,0.0002,2]
[364968350,1749364242679,-172.30420258,0.0002,2]
[364968351,1749364242690,-440.0,0.0002,2]
[364968352,1749364242699,-494.69,0.0002,2]
[364968353,1749364242709,-440.0,0.0002,2]
[364968354,1749364242719,-235.9334359,0.0002,2]
[364968355,1749364242732,-204.0665641,0.0002,2]
[364968356,1749364242742,-350.0,0.0002,2]
[364968357,1749364242752,-98.59413734,0.0002,2]
[364968358,1749364242764,-341.40586266,0.0002,2]
[364968359,1749364242774,-503.73,0.0002,2]
[364968360,1749364242783,-614.56833695,0.0002,2]
[364968361,1749364242792,-173.01189721,0.0002,2]
[364968363,1749364242847,-145.52023882,0.0002,2]
[364968364,1749364242987,-80.5044032,0.0002,2]
[364968365,1749364242999,-1459.98287257,0.0002,2]
[364968367,1749364243009,-266.94361989,0.0002,2]
[364968449,1749364247065,-500.0,0.00019176,2]
[364968451,1749364247075,-500.0,0.00019176,2]
[364968453,1749364247084,-500.0,0.00019176,2]
[364968455,1749364247094,-254.30410025,0.00019176,2]
[364969234,1749364335116,-500.0,0.00017763,2]
[364969235,1749364335139,-592.06800782,0.00017763,2]
[364969236,1749364335165,-500.0,0.00017763,2]
[364969237,1749364335189,-161.93199218,0.00017763,2]
[364969238,1749364364663,2000.199999,0.00024657,30]
[364969243,1749364694336,279.613705,0.00013699,2]
[364969247,1749365230133,-508.97728073,0.0001663,2]
[364969248,1749365231093,-248.30548793,0.0001663,2]
[364969249,1749365353081,-4242.71723134,0.0001663,2]
[364969250,1749365353106,-2327.0510536,0.00016706,2]
[364969251,1749365353130,-462.71723,0.00016798,2]
[364969252,1749365353155,-199.735643,0.00017062,2]
[364969253,1749365358114,-207.41931729,0.00017663,2]
[364969254,1749365358139,-244.09922695,0.00017699,2]
[364969255,1749365358162,-300.0,0.00017699,2]
[364969256,1749365358185,-399.74858659,0.000177,2]
[364969257,1749365361255,5000.0,0.00017523,2]
[364969258,1749365376490,5000.0,0.00017486,2]
[364969259,1749365392866,5000.0,0.00017486,2]